fUSD/lending_fUSD_20250204
["ID","MTS","AMOUNT","RATE_DAILY","PERIOD"]
[351583984,1738647032307,-150.0,8.727e-05,2]
[351583986,1738647032316,-150.0,8.73e-05,2]
[351583990,1738647032332,-150.0,8.73e-05,2]
[351583992,1738647032342,-150.0,8.733e-05,2]
[351583994,1738647032351,-150.0,8.734e-05,2]
[351583997,1738647032367,-150.0,8.736e-05,2]
[351584000,1738647032377,-150.0,8.739e-05,2]
[351584003,1738647032387,-331.10083791,8.745e-05,2]
[351584007,1738647032397,-150.0,8.747e-05,2]
[351584009,1738647032407,-150.0,8.748e-05,2]
[351584011,1738647032417,-150.0,8.749e-05,2]
[351584014,1738647032428,-150.0,8.753e-05,2]
[351584016,1738647032438,-150.0,8.754e-05,2]
[351584018,1738647032450,-1000.0,8.756e-05,2]
[351584020,1738647032460,-1000.0,8.756e-05,2]
[351584021,1738647032469,-1000.0,8.756e-05,2]
[351584024,1738647032479,-1000.0,8.756e-05,2]
[351584026,1738647032489,-1000.0,8.756e-05,2]
[351584028,1738647032499,-1000.0,8.756e-05,2]
[351584030,1738647032508,-1000.0,8.756e-05,2]
[351584031,1738647032518,-1000.0,8.756e-05,2]
[351584034,1738647032528,-1000.0,8.756e-05,2]
[351584036,1738647032539,-1000.0,8.756e-05,2]
[351584038,1738647032550,-1000.0,8.756e-05,2]
[351584040,1738647032559,-1000.0,8.756e-05,2]
[351584042,1738647032569,-881.4818,8.756e-05,2]
[351584044,1738647032579,-200.0,8.758e-05,2]
[351584046,1738647032589,-150.0,8.759e-05,2]
[351584048,1738647032599,-150.0,8.761e-05,2]
[351584050,1738647032610,-6406.33341159,8.761e-05,2]
[351584052,1738647032621,-331.10083791,8.762e-05,2]
[351584054,1738647032630,-150.0,8.763e-05,2]
[351584056,1738647032640,-150.0,8.765e-05,2]
[351584058,1738647032650,-150.0,8.767e-05,2]
[351584060,1738647032659,-150.0,8.767e-05,2]
[351584062,1738647032669,-150.0,8.767e-05,2]
[351584064,1738647032679,-1667.03,8.767e-05,2]
[351584066,1738647032689,-6406.33341159,8.769e-05,2]
[351584068,1738647032699,-200.0,8.77e-05,2]
[351584070,1738647032710,-150.0,8.77e-05,2]
[351584072,1738647032720,-183.92811942,8.773e-05,2]
[351584074,1738647032730,-6406.33341159,8.776e-05,2]
[351584076,1738647032740,-2517.784,8.776e-05,2]
[351584078,1738647032749,-150.0,8.777e-05,2]
[351584080,1738647032759,-6406.33341159,8.781e-05,2]
[351584082,1738647032769,-331.10083791,8.781e-05,2]
[351584084,1738647032780,-150.0,8.783e-05,2]
[351584087,1738647032790,-1406.53942338,8.786e-05,2]
[351584089,1738647032800,-150.0,8.787e-05,2]
[351584091,1738647032809,-150.0,8.788e-05,2]
[351584093,1738647032819,-150.0,8.788e-05,2]
[351584095,1738647032828,-898.0050558,8.789e-05,2]
[351584097,1738647032838,-17676.831512,8.789e-05,2]
[351584099,1738647032848,-3885.4866334,8.789e-05,2]
[351584101,1738647032860,-4400.0113676,8.789e-05,2]
[351584103,1738647032869,-1311.9609386,8.789e-05,2]
[351584105,1738647032880,-150.0,8.791e-05,2]
[351584107,1738647032889,-568.0,8.791e-05,2]
[351584109,1738647032899,-638.0,8.791e-05,2]
[351584111,1738647032909,-1826.0,8.791e-05,2]
[351584113,1738647032922,-2953.0,8.791e-05,2]
[351584115,1738647032932,-783.0,8.791e-05,2]
[351584117,1738647032943,-1264.0,8.791e-05,2]
[351584119,1738647032953,-907.0,8.791e-05,2]
[351584121,1738647032963,-1324.0,8.791e-05,2]
[351584123,1738647032973,-539.0,8.791e-05,2]
[351584125,1738647032982,-1108.0,8.791e-05,2]
[351584127,1738647032992,-1272.0,8.791e-05,2]
[351584129,1738647033002,-3911.0,8.791e-05,2]
[351584131,1738647033012,-150.0,8.791e-05,2]
[351584133,1738647033021,-331.10083791,8.792e-05,2]
[351584135,1738647033031,-44188.26010698,8.792e-05,2]
[351584138,1738647033044,-36136.12229196,8.792e-05,2]
[351584140,1738647033054,-150.0,8.792e-05,2]
[351584142,1738647033064,-1000.0,8.795e-05,4]
[351584144,1738647033074,-1762.76,8.795e-05,2]
[351584146,1738647033084,-2818.12,8.795e-05,2]
[351584148,1738647033094,-3494.45,8.795e-05,2]
[351584150,1738647033104,-2528.63,8.795e-05,2]
[351584152,1738647033117,-2964.62,8.795e-05,2]
[351584154,1738647033127,-1712.37,8.795e-05,2]
[351584156,1738647033136,-3025.18,8.795e-05,2]
[351584158,1738647033146,-4062.6,8.795e-05,2]
[351584160,1738647033157,-500.0,8.795e-05,2]
[351584162,1738647033167,-1149.59,8.795e-05,2]
[351584164,1738647033177,-2209.69,8.795e-05,2]
[351584166,1738647033186,-3289.59,8.795e-05,2]
[351584168,1738647033196,-1624.93,8.795e-05,2]
[351584170,1738647033206,-3958.09,8.795e-05,2]
[351584172,1738647033215,-3298.92,8.795e-05,2]
[351584174,1738647033225,-2774.89,8.795e-05,2]
[351584176,1738647033235,-2957.73,8.795e-05,2]
[351584178,1738647033244,-500.0,8.795e-05,2]
[351584180,1738647033254,-1095.84,8.795e-05,2]
[351584182,1738647033264,-501.00054882,8.795e-05,2]
[351584184,1738647033274,-3320.2,8.795e-05,2]
[351584186,1738647033283,-500.0,8.795e-05,2]
[351584188,1738647033293,-417.08971436,8.795e-05,2]
[351584190,1738647033308,-500.0,8.795e-05,2]
[351584193,1738647033318,-655.3,8.795e-05,2]
[351584195,1738647033328,-500.0,8.795e-05,2]
[351584197,1738647033338,-1171.6,8.795e-05,2]
[351584199,1738647033347,-500.0,8.795e-05,2]
[351584201,1738647033360,-500.0,8.795e-05,2]
[351584203,1738647033371,-500.0,8.795e-05,2]
[351584205,1738647033382,-1407.81,8.795e-05,2]
[351584207,1738647033392,-679.53,8.795e-05,2]
[351584209,1738647033401,-500.0,8.795e-05,2]
[351584211,1738647033411,-500.0,8.795e-05,2]
[351584213,1738647033421,-2947.82,8.795e-05,2]
[351584215,1738647033433,-2102.67,8.795e-05,2]
[351584217,1738647033443,-500.0,8.795e-05,2]
[351584219,1738647033453,-500.0,8.795e-05,2]
[351584221,1738647033463,-500.0,8.795e-05,2]
[351584223,1738647033474,-500.0,8.795e-05,2]
[351584225,1738647033484,-500.0,8.795e-05,2]
[351584227,1738647033494,-500.0,8.795e-05,2]
[351584229,1738647033505,-500.0,8.795e-05,2]
[351584231,1738647033515,-163.41770462,8.795e-05,2]
[351584233,1738647033526,-500.0,8.795e-05,2]
[351584235,1738647033535,-500.0,8.795e-05,2]
[351584237,1738647033545,-500.0,8.795e-05,2]
[351584240,1738647033555,-500.0,8.795e-05,2]
[351584242,1738647033565,-500.0,8.795e-05,2]
[351584244,1738647033575,-500.0,8.795e-05,2]
[351584246,1738647033586,-500.0,8.795e-05,2]
[351584248,1738647033596,-500.0,8.795e-05,2]
[351584250,1738647033606,-500.0,8.795e-05,2]
[351584252,1738647033620,-500.0,8.795e-05,2]
[351584254,1738647033631,-500.0,8.795e-05,2]
[351584256,1738647033641,-500.0,8.795e-05,2]
[351584258,1738647033653,-500.0,8.795e-05,2]
[351584260,1738647033664,-500.0,8.795e-05,2]
[351584262,1738647033673,-500.0,8.795e-05,2]
[351584264,1738647033686,-500.0,8.795e-05,2]
[351584266,1738647033697,-500.0,8.795e-05,2]
[351584268,1738647033707,-200.0,8.795e-05,2]
[351584270,1738647033717,-500.0,8.795e-05,2]
[351584272,1738647033727,-500.0,8.795e-05,2]
[351584274,1738647033737,-500.0,8.795e-05,2]
[351584276,1738647033747,-500.0,8.795e-05,2]
[351584278,1738647033757,-500.0,8.795e-05,2]
[351584280,1738647033767,-500.0,8.795e-05,2]
[351584282,1738647033777,-500.0,8.795e-05,2]
[351584284,1738647033788,-500.0,8.795e-05,2]
[351584286,1738647033798,-500.0,8.795e-05,2]
[351584288,1738647033808,-500.0,8.795e-05,2]
[351584290,1738647033818,-500.0,8.795e-05,2]
[351584292,1738647033828,-500.0,8.795e-05,2]
[351584294,1738647033838,-500.0,8.795e-05,2]
[351584296,1738647033848,-500.0,8.795e-05,2]
[351584298,1738647033860,-500.0,8.795e-05,2]
[351584300,1738647033870,-500.0,8.795e-05,2]
[351584301,1738647033880,-500.0,8.795e-05,2]
[351584303,1738647033891,-500.0,8.795e-05,2]
[351584305,1738647033900,-500.0,8.795e-05,2]
[351584307,1738647033911,-500.0,8.795e-05,2]
[351584309,1738647033921,-500.0,8.795e-05,2]
[351584311,1738647033931,-500.0,8.795e-05,2]
[351584313,1738647033941,-500.0,8.795e-05,2]
[351584315,1738647033951,-500.0,8.795e-05,2]
[351584317,1738647033962,-500.0,8.795e-05,2]
[351584319,1738647033972,-500.0,8.795e-05,2]
[351584321,1738647033982,-500.0,8.795e-05,2]
[351584323,1738647033991,-500.0,8.795e-05,2]
[351584325,1738647034001,-500.0,8.795e-05,2]
[351584327,1738647034011,-500.0,8.795e-05,2]
[351584329,1738647034022,-500.0,8.795e-05,2]
[351584331,1738647034031,-500.0,8.795e-05,2]
[351584333,1738647034041,-500.0,8.795e-05,2]
[351584335,1738647034051,-500.0,8.795e-05,2]
[351584337,1738647034060,-500.0,8.795e-05,2]
[351584339,1738647034070,-500.0,8.795e-05,2]
[351584341,1738647034081,-500.0,8.795e-05,2]
[351584343,1738647034091,-406.48162956,8.795e-05,2]
[351584345,1738647034101,-500.0,8.795e-05,2]
[351584347,1738647034113,-500.0,8.795e-05,2]
[351584348,1738647034122,-500.0,8.795e-05,2]
[351584349,1738647034132,-500.0,8.795e-05,2]
[351584350,1738647034142,-500.0,8.795e-05,2]
[351584351,1738647034151,-500.0,8.795e-05,2]
[351584352,1738647034161,-500.0,8.795e-05,2]
[351584353,1738647034170,-500.0,8.795e-05,2]
[351584354,1738647034179,-500.0,8.795e-05,2]
[351584355,1738647034188,-500.0,8.795e-05,2]
[351584356,1738647034197,-500.0,8.795e-05,2]
[351584357,1738647034206,-500.0,8.795e-05,2]
[351584358,1738647034216,-500.0,8.795e-05,2]
[351584359,1738647034226,-500.0,8.795e-05,2]
[351584360,1738647034235,-500.0,8.795e-05,2]
[351584361,1738647034245,-500.0,8.795e-05,2]
[351584363,1738647034255,-500.0,8.795e-05,2]
[351584365,1738647034265,-500.0,8.795e-05,2]
[351584367,1738647034275,-261.62239603,8.795e-05,2]
[351584370,1738647034288,-238.37760397,8.795e-05,2]
[351584372,1738647034298,-180.23145206,8.795e-05,2]
[351584375,1738647034323,-319.76854794,8.795e-05,2]
[351584377,1738647034334,-500.0,8.795e-05,2]
[351584379,1738647034344,-500.0,8.795e-05,2]
[351584381,1738647034354,-500.0,8.795e-05,2]
[351584383,1738647034369,-156.97158006,8.796e-05,2]
[351584386,1738647034381,-563.67083781,8.796e-05,2]
[351584388,1738647034393,-273.21604002,8.796e-05,2]
[351584390,1738647034405,-256.249993,8.796e-05,2]
[351584397,1738647034587,-1221.33154911,8.796e-05,2]
[351584398,1738647034598,-91.07291927,8.796e-05,2]
[351584399,1738647034720,-150.0,8.698e-05,2]
[351584400,1738647034732,-1440.45708073,8.796e-05,2]
[351584401,1738647034742,-2736.24,8.796e-05,2]
[351584402,1738647034753,-909.26,8.796e-05,2]
[351584403,1738647034763,-155.468499,8.796e-05,2]
[351584404,1738647034773,-500.0,8.796e-05,2]
[351584405,1738647034784,-500.0,8.796e-05,2]
[351584406,1738647034794,-1606.19,8.796e-05,2]
[351584407,1738647034804,-156.384211,8.796e-05,2]
[351584408,1738647034815,-1725.60020927,8.796e-05,2]
[351584409,1738647034827,-368.82979073,8.796e-05,2]
[351584410,1738647034836,-124.92020927,8.796e-05,2]
[351584422,1738647038073,-150.0,8.67e-05,2]
[351584424,1738647038088,-33.240475,8.795e-05,2]
[351584428,1738647038123,-466.759525,8.795e-05,2]
[351584431,1738647038140,-500.0,8.795e-05,2]
[351584434,1738647038156,-500.0,8.795e-05,2]
[351584436,1738647038172,-375.07979073,8.796e-05,2]
[351584439,1738647038188,-2285.046111,8.796e-05,2]
[351584442,1738647038203,-1969.29,8.796e-05,2]
[351584444,1738647038218,-2301.518056,8.796e-05,2]
[351584447,1738647038232,-1875.28,8.796e-05,2]
[351584449,1738647038241,-1750.18,8.796e-05,2]
[351584451,1738647038251,-155.639736,8.796e-05,2]
[351584453,1738647038261,-2906.72,8.796e-05,2]
[351584485,1738647038562,-2670.97,8.796e-05,2]
[351584489,1738647038585,-2784.44,8.796e-05,2]
[351584491,1738647038595,-1267.76,8.796e-05,2]
[351584493,1738647038605,-2816.21,8.796e-05,2]
[351584495,1738647038620,-500.0,8.796e-05,2]
[351584497,1738647038630,-771.59,8.796e-05,2]
[351584499,1738647038639,-2023.3,8.796e-05,2]
[351584501,1738647038649,-2021.43,8.796e-05,2]
[351584503,1738647038660,-3677.07,8.796e-05,2]
[351584505,1738647038669,-2216.22,8.796e-05,2]
[351584507,1738647038678,-2174.4,8.796e-05,2]
[351584509,1738647038691,-3143.82,8.796e-05,2]
[351584511,1738647038701,-2076.97,8.796e-05,2]
[351584513,1738647038711,-2277.9,8.796e-05,2]
[351584515,1738647038720,-3229.13,8.796e-05,2]
[351584518,1738647038730,-500.0,8.796e-05,2]
[351584520,1738647038739,-3867.85,8.796e-05,2]
[351584521,1738647038749,-3944.67,8.796e-05,2]
[351584524,1738647038760,-3421.75,8.796e-05,2]
[351584525,1738647038769,-7290.83,8.796e-05,2]
[351584528,1738647038780,-9380.08,8.796e-05,2]
[351584530,1738647038790,-712.32,8.796e-05,2]
[351584532,1738647038799,-3661.92,8.796e-05,2]
[351584534,1738647038809,-2528.87,8.796e-05,2]
[351584536,1738647038819,-1912.82,8.796e-05,2]
[351584537,1738647038828,-2738.76,8.796e-05,2]
[351584539,1738647038838,-2693.73,8.796e-05,2]
[351584542,1738647038848,-258.68184536,8.796e-05,2]
[351584544,1738647038858,-666.0,8.797e-05,2]
[351584546,1738647038872,-500.0,8.797e-05,2]
[351584547,1738647038882,-500.0,8.797e-05,2]
[351584549,1738647038892,-500.0,8.797e-05,2]
[351584551,1738647038901,-500.0,8.797e-05,2]
[351584553,1738647038911,-500.24221608,8.797e-05,2]
[351584555,1738647038921,-500.0,8.797e-05,2]
[351584557,1738647038931,-500.0,8.797e-05,2]
[351584560,1738647038941,-500.0,8.797e-05,2]
[351584562,1738647038950,-500.0,8.797e-05,2]
[351584564,1738647038961,-508.81254527,8.797e-05,2]
[351584566,1738647038972,-500.0,8.797e-05,2]
[351584568,1738647038982,-500.0,8.797e-05,2]
[351584570,1738647038993,-2274.6,8.797e-05,2]
[351584572,1738647039002,-500.0,8.797e-05,2]
[351584574,1738647039012,-1132.8,8.797e-05,2]
[351584576,1738647039022,-500.0,8.797e-05,2]
[351584578,1738647039032,-500.0,8.797e-05,2]
[351584580,1738647039041,-500.0,8.797e-05,2]
[351584582,1738647039050,-503.08075164,8.797e-05,2]
[351584584,1738647039060,-150.0,8.797e-05,2]
[351584586,1738647039069,-500.0,8.797e-05,2]
[351584588,1738647039078,-500.0,8.797e-05,2]
[351584590,1738647039088,-150.0,8.797e-05,2]
[351584592,1738647039098,-500.0,8.797e-05,2]
[351584594,1738647039107,-500.0,8.797e-05,2]
[351584596,1738647039119,-426.69040579,8.797e-05,2]
[351584598,1738647039129,-500.0,8.797e-05,2]
[351584600,1738647039138,-724.28,8.797e-05,2]
[351584602,1738647039148,-500.0,8.797e-05,2]
[351584604,1738647039158,-500.97176166,8.797e-05,2]
[351584606,1738647039168,-500.0,8.797e-05,2]
[351584607,1738647039177,-500.0,8.797e-05,2]
[351584608,1738647039188,-500.0,8.797e-05,2]
[351584609,1738647039198,-501.07876847,8.797e-05,2]
[351584610,1738647039208,-500.0,8.797e-05,2]
[351584611,1738647039217,-1387.37,8.797e-05,2]
[351584612,1738647039227,-558.49,8.797e-05,2]
[351584613,1738647039236,-500.0,8.797e-05,2]
[351584614,1738647039246,-500.0,8.797e-05,2]
[351584615,1738647039255,-500.0,8.797e-05,2]
[351584616,1738647039265,-500.0,8.797e-05,2]
[351584617,1738647039274,-530.24,8.797e-05,2]
[351584618,1738647039283,-500.0,8.797e-05,2]
[351584619,1738647039293,-500.0,8.797e-05,2]
[351584620,1738647039302,-500.36761521,8.797e-05,2]
[351584621,1738647039312,-500.0,8.797e-05,2]
[351584622,1738647039321,-500.0,8.797e-05,2]
[351584623,1738647039331,-1166.16,8.797e-05,2]
[351584624,1738647039340,-500.0,8.797e-05,2]
[351584625,1738647039349,-500.18809698,8.797e-05,2]
[351584626,1738647039359,-500.0,8.797e-05,2]
[351584627,1738647039371,-1560.52,8.797e-05,2]
[351584628,1738647039380,-500.0,8.797e-05,2]
[351584629,1738647039390,-507.08139571,8.797e-05,2]
[351584630,1738647039400,-500.0,8.797e-05,2]
[351584631,1738647039410,-500.0,8.797e-05,2]
[351584633,1738647039420,-1963.13,8.797e-05,2]
[351584635,1738647039430,-500.0,8.797e-05,2]
[351584636,1738647039443,-500.0,8.797e-05,2]
[351584637,1738647039452,-500.0,8.797e-05,2]
[351584638,1738647039461,-500.0,8.797e-05,2]
[351584639,1738647039471,-1860.21,8.797e-05,2]
[351584640,1738647039482,-500.0,8.797e-05,2]
[351584641,1738647039491,-610.53046241,8.797e-05,2]
[351584642,1738647039500,-500.0,8.797e-05,2]
[351584643,1738647039510,-1446.11,8.797e-05,2]
[351584644,1738647039518,-1744.84,8.797e-05,2]
[351584645,1738647039528,-500.0,8.797e-05,2]
[351584646,1738647039537,-500.0,8.797e-05,2]
[351584647,1738647039546,-500.0,8.797e-05,2]
[351584648,1738647039556,-1514.37,8.797e-05,2]
[351584649,1738647039565,-500.0,8.797e-05,2]
[351584650,1738647039575,-500.0,8.797e-05,2]
[351584652,1738647039585,-1208.97,8.797e-05,2]
[351584653,1738647039594,-500.0,8.797e-05,2]
[351584654,1738647039604,-672.14,8.797e-05,2]
[351584655,1738647039618,-500.0,8.797e-05,2]
[351584656,1738647039628,-500.0,8.797e-05,2]
[351584657,1738647039636,-500.0,8.797e-05,2]
[351584658,1738647039645,-753.67,8.797e-05,2]
[351584659,1738647039655,-500.0,8.797e-05,2]
[351584660,1738647039664,-500.84885072,8.797e-05,2]
[351584661,1738647039674,-500.0,8.797e-05,2]
[351584662,1738647039684,-500.0,8.797e-05,2]
[351584663,1738647039694,-1012.81,8.797e-05,2]
[351584664,1738647039703,-501.21531937,8.797e-05,2]
[351584665,1738647039713,-1318.32400971,8.797e-05,2]
[351584666,1738647039728,-172.61599029,8.797e-05,2]
[351584667,1738647039737,-422.90753076,8.797e-05,2]
[351584668,1738647039749,-77.09246924,8.797e-05,2]
[351584669,1738647039759,-500.0,8.797e-05,2]
[351584670,1738647039768,-948.34,8.797e-05,2]
[351584671,1738647039778,-500.0,8.797e-05,2]
[351584672,1738647039788,-500.0,8.797e-05,2]
[351584673,1738647039797,-500.0,8.797e-05,2]
[351584674,1738647039807,-612.59,8.797e-05,2]
[351584675,1738647039816,-500.0,8.797e-05,2]
[351584676,1738647039826,-500.0,8.797e-05,2]
[351584677,1738647039836,-1604.1,8.797e-05,2]
[351584678,1738647039845,-500.0,8.797e-05,2]
[351584679,1738647039855,-501.91845012,8.797e-05,2]
[351584680,1738647039867,-1148.87,8.797e-05,2]
[351584681,1738647039878,-500.0,8.797e-05,2]
[351584682,1738647039887,-500.0,8.797e-05,2]
[351584683,1738647039898,-663.68,8.797e-05,2]
[351584684,1738647039908,-500.59330565,8.797e-05,2]
[351584685,1738647039918,-717.66,8.797e-05,2]
[351584686,1738647039927,-501.22387425,8.797e-05,2]
[351584687,1738647039937,-500.0,8.797e-05,2]
[351584688,1738647039947,-500.0,8.797e-05,2]
[351584689,1738647039956,-500.0,8.797e-05,2]
[351584690,1738647039966,-500.0,8.797e-05,2]
[351584691,1738647039976,-500.0,8.797e-05,2]
[351584692,1738647039986,-500.0,8.797e-05,2]
[351584693,1738647039995,-504.96381258,8.797e-05,2]
[351584694,1738647040005,-500.0,8.797e-05,2]
[351584695,1738647040015,-1150.8499949,8.797e-05,2]
[351584696,1738647040027,-436.4800051,8.797e-05,2]
[351584697,1738647040036,-500.0,8.797e-05,2]
[351584698,1738647040046,-500.0,8.797e-05,2]
[351584699,1738647040056,-1083.50888999,8.797e-05,2]
[351584700,1738647040067,-146.71111001,8.797e-05,2]
[351584701,1738647040077,-504.17025643,8.797e-05,2]
[351584702,1738647040087,-500.4941726,8.797e-05,2]
[351584703,1738647040097,-500.0,8.797e-05,2]
[351584704,1738647040106,-501.19544806,8.797e-05,2]
[351584705,1738647040118,-418.4796465,8.797e-05,2]
[351584706,1738647040132,-85.8303535,8.797e-05,2]
[351584707,1738647040141,-500.48372436,8.797e-05,2]
[351584708,1738647040151,-500.0,8.797e-05,2]
[351584710,1738647040162,-535.87,8.797e-05,2]
[351584712,1738647040171,-500.0,8.797e-05,2]
[351584714,1738647040181,-500.0,8.797e-05,2]
[351584716,1738647040191,-1824.08,8.797e-05,2]
[351584718,1738647040200,-500.0,8.797e-05,2]
[351584720,1738647040210,-500.0,8.797e-05,2]
[351584722,1738647040220,-500.0,8.797e-05,2]
[351584724,1738647040229,-500.0,8.797e-05,2]
[351584726,1738647040238,-500.0,8.797e-05,2]
[351584728,1738647040247,-260.71817485,8.797e-05,2]
[351584729,1738647040257,-637.04805626,8.797e-05,2]
[351584730,1738647040266,-500.0,8.797e-05,2]
[351584731,1738647040276,-500.0,8.797e-05,2]
[351584732,1738647040285,-500.0,8.797e-05,2]
[351584733,1738647040295,-500.0,8.797e-05,2]
[351584734,1738647040304,-500.0,8.797e-05,2]
[351584735,1738647040313,-500.0,8.797e-05,2]
[351584736,1738647040323,-500.0,8.797e-05,2]
[351584737,1738647040332,-707.42,8.797e-05,2]
[351584738,1738647040341,-500.0,8.797e-05,2]
[351584739,1738647040349,-500.0,8.797e-05,2]
[351584740,1738647040359,-500.0,8.797e-05,2]
[351584741,1738647040372,-500.0,8.797e-05,2]
[351584742,1738647040382,-500.0,8.797e-05,2]
[351584743,1738647040393,-500.0,8.797e-05,2]
[351584744,1738647040403,-794.84,8.797e-05,2]
[351584745,1738647040414,-524.23,8.797e-05,2]
[351584746,1738647040424,-504.11921406,8.797e-05,2]
[351584747,1738647040435,-500.0,8.797e-05,2]
[351584748,1738647040446,-1749.64,8.797e-05,2]
[351584749,1738647040457,-500.0,8.797e-05,2]
[351584750,1738647040466,-1085.06,8.797e-05,2]
[351584751,1738647040476,-500.0,8.797e-05,2]
[351584752,1738647040486,-500.0,8.797e-05,2]
[351584753,1738647040495,-500.0,8.797e-05,2]
[351584754,1738647040504,-1345.31,8.797e-05,2]
[351584755,1738647040514,-500.0,8.797e-05,2]
[351584756,1738647040524,-500.0,8.797e-05,2]
[351584757,1738647040533,-500.0,8.797e-05,2]
[351584758,1738647040542,-813.04,8.797e-05,2]
[351584759,1738647040551,-500.0,8.797e-05,2]
[351584760,1738647040560,-500.0,8.797e-05,2]
[351584761,1738647040569,-500.28146586,8.797e-05,2]
[351584762,1738647040578,-500.0,8.797e-05,2]
[351584763,1738647040587,-992.42,8.797e-05,2]
[351584764,1738647040597,-500.0,8.797e-05,2]
[351584765,1738647040606,-500.0,8.797e-05,2]
[351584766,1738647040616,-1314.06,8.797e-05,2]
[351584767,1738647040629,-500.0,8.797e-05,2]
[351584768,1738647040639,-500.0,8.797e-05,2]
[351584769,1738647040648,-500.0,8.797e-05,2]
[351584770,1738647040657,-500.0,8.797e-05,2]
[351584771,1738647040666,-2058.44,8.797e-05,2]
[351584772,1738647040676,-500.0,8.797e-05,2]
[351584773,1738647040685,-500.0,8.797e-05,2]
[351584774,1738647040695,-500.0,8.797e-05,2]
[351584775,1738647040704,-500.0,8.797e-05,2]
[351584776,1738647040714,-500.0,8.797e-05,2]
[351584777,1738647040723,-500.0,8.797e-05,2]
[351584778,1738647040733,-1368.7746431,8.797e-05,2]
[351584779,1738647041477,-1028.43838637,8.797e-05,2]
[351584780,1738647041489,-85.92697053,8.797e-05,2]
[351584781,1738647041498,-500.0,8.797e-05,2]
[351584782,1738647041507,-710.49,8.797e-05,2]
[351584783,1738647041516,-500.0,8.797e-05,2]
[351584784,1738647041526,-589.91,8.797e-05,2]
[351584785,1738647041536,-500.0,8.797e-05,2]
[351584786,1738647041545,-1273.19,8.797e-05,2]
[351584787,1738647041554,-500.0,8.797e-05,2]
[351584788,1738647041563,-500.0,8.797e-05,2]
[351584789,1738647041573,-500.0,8.797e-05,2]
[351584790,1738647041582,-500.0,8.797e-05,2]
[351584791,1738647041592,-2276.95738209,8.797e-05,2]
[351584792,1738647041603,-20.14261791,8.797e-05,2]
[351584793,1738647041612,-2810.86,8.797e-05,2]
[351584794,1738647041628,-500.0,8.797e-05,2]
[351584795,1738647041637,-500.0,8.797e-05,2]
[351584796,1738647041647,-1884.51,8.797e-05,2]
[351584797,1738647041657,-501.09315215,8.797e-05,2]
[351584798,1738647041667,-472.58675078,8.797e-05,2]
[351584799,1738647041696,-27.41324922,8.797e-05,2]
[351584800,1738647041706,-500.0,8.797e-05,2]
[351584801,1738647041717,-509.92,8.797e-05,2]
[351584802,1738647041727,-500.0,8.797e-05,2]
[351584803,1738647041736,-1404.73,8.797e-05,2]
[351584804,1738647041746,-500.0,8.797e-05,2]
[351584805,1738647041756,-500.0,8.797e-05,2]
[351584806,1738647041766,-500.0,8.797e-05,2]
[351584807,1738647041775,-897.6,8.797e-05,2]
[351584808,1738647041786,-2482.76,8.797e-05,2]
[351584809,1738647041796,-500.0,8.797e-05,2]
[351584810,1738647041806,-500.0,8.797e-05,2]
[351584811,1738647041815,-500.0,8.797e-05,2]
[351584812,1738647041825,-500.0,8.797e-05,2]
[351584813,1738647041835,-1530.26,8.797e-05,2]
[351584814,1738647041845,-502.42892388,8.797e-05,2]
[351584815,1738647041854,-322.01781372,8.797e-05,2]
[351584816,1738647041864,-500.0,8.797e-05,2]
[351584817,1738647041879,-519.79444173,8.797e-05,2]
[351584818,1738647041889,-500.0,8.797e-05,2]
[351584819,1738647041898,-500.0,8.797e-05,2]
[351584820,1738647041907,-1076.66,8.797e-05,2]
[351584821,1738647041916,-501.33418896,8.797e-05,2]
[351584822,1738647041925,-500.0,8.797e-05,2]
[351584823,1738647041935,-500.0,8.797e-05,2]
[351584824,1738647041943,-2554.94,8.797e-05,2]
[351584825,1738647041952,-500.0,8.797e-05,2]
[351584826,1738647041962,-2214.7,8.797e-05,2]
[351584827,1738647041971,-501.351091,8.797e-05,2]
[351584828,1738647041980,-1303.79,8.797e-05,2]